[Event "Titled Tuesday Blitz May 03 Early 2022"]
[White "Martin Carmona, Gaston Manuel"]
[Black "Subaste, Arman"]
[WhiteFideId "22284567"]
[BlackFideId "5221080"]
[WhiteElo "2146"]
[BlackElo "1856"]
[Result "0-1"]
[Round "08"]
[TimeControl "180+1"]
[Date "2022.05.03"]
[WhiteClock "0:01:34"]
[BlackClock "0:00:44"]

1. d4 {[%clk 0:03:00]}  Nf6 {[%clk 0:02:59]} 2. c4 {[%clk 0:03:01]}  g6 {[%clk 0:02:59]} 3. Nc3 {[%clk 0:03:01]}  Bg7 {[%clk 0:03:00]} 4. e4 {[%clk 0:03:01]}  d6 {[%clk 0:03:00]} 5. Nf3 {[%clk 0:03:02]}  O-O {[%clk 0:03:00]} 6. Be2 {[%clk 0:03:02]}  e5 {[%clk 0:03:00]} 7. dxe5 {[%clk 0:03:03]}  dxe5 {[%clk 0:03:00]} 8. Qxd8 {[%clk 0:03:04]}  Rxd8 {[%clk 0:03:00]} 9. Bg5 {[%clk 0:03:05]}  Re8 {[%clk 0:02:57]} 10. Nd5 {[%clk 0:03:04]}  Nxd5 {[%clk 0:02:54]} 11. cxd5 {[%clk 0:03:05]}  c6 {[%clk 0:02:54]} 12. Bc4 {[%clk 0:03:06]}  cxd5 {[%clk 0:02:53]} 13. Bxd5 {[%clk 0:03:07]}  Nc6 {[%clk 0:02:53]} 14. h3 {[%clk 0:02:51]}  Nb4 {[%clk 0:02:22]} 15. O-O-O {[%clk 0:02:48]}  Nxd5 {[%clk 0:02:06]} 16. Rxd5 {[%clk 0:02:49]}  Be6 {[%clk 0:02:01]} 17. Rb5 {[%clk 0:02:47]}  b6 {[%clk 0:01:57]} 18. Kb1 {[%clk 0:02:47]}  f6 {[%clk 0:01:50]} 19. Be3 {[%clk 0:02:46]}  Bc4 {[%clk 0:01:46]} 20. Rb4 {[%clk 0:02:42]}  Bd3+ {[%clk 0:01:44]} 21. Ka1 {[%clk 0:02:42]}  Bf8 {[%clk 0:01:41]} 22. Rb3 {[%clk 0:02:42]}  Bxe4 {[%clk 0:01:37]} 23. Re1 {[%clk 0:02:38]}  Rac8 {[%clk 0:01:28]} 24. Rc3 {[%clk 0:02:24]}  Rxc3 {[%clk 0:01:23]} 25. bxc3 {[%clk 0:02:25]}  Ba3 {[%clk 0:01:19]} 26. Bc1 {[%clk 0:02:13]}  Bxf3 {[%clk 0:01:12]} 27. Bxa3 {[%clk 0:02:13]}  Bxg2 {[%clk 0:01:10]} 28. h4 {[%clk 0:02:13]}  Rd8 {[%clk 0:01:06]} 29. Be7 {[%clk 0:02:11]}  Rd2 {[%clk 0:01:01]} 30. Bxf6 {[%clk 0:02:11]}  e4 {[%clk 0:01:01]} 31. Bd4 {[%clk 0:02:10]}  Kf7 {[%clk 0:01:01]} 32. Rg1 {[%clk 0:02:08]}  Bf3 {[%clk 0:01:00]} 33. Rg5 {[%clk 0:02:08]}  Rd1+ {[%clk 0:00:51]} 34. Kb2 {[%clk 0:02:08]}  Rh1 {[%clk 0:00:52]} 35. Rd5 {[%clk 0:02:04]}  e3 {[%clk 0:00:46]} 36. Rd7+ {[%clk 0:02:01]}  Ke6 {[%clk 0:00:46]} 37. Rd8 {[%clk 0:01:42]}  e2 {[%clk 0:00:46]} 38. Re8+ {[%clk 0:01:42]}  Kd5 {[%clk 0:00:46]} 39. Re5+ {[%clk 0:01:34]}  Kd6 {[%clk 0:00:44]} 0-1


[Site "https://www.chess.com"]

[Event "Titled Tuesday Blitz May 03 Early 2022"]
[White "Melikyan, Gnel"]
[Black "Andreev, Eduard"]
[WhiteFideId "54109990"]
[BlackFideId "14103400"]
[WhiteElo "1772"]
[BlackElo "2382"]
[Result "1-0"]
[Round "08"]
[TimeControl "180+1"]
[Date "2022.05.03"]
[WhiteClock "0:00:15"]
[BlackClock "0:00:02"]

1. d4 {[%clk 0:02:56]}  Nf6 {[%clk 0:02:55]} 2. Bf4 {[%clk 0:02:56]}  c5 {[%clk 0:02:54]} 3. c3 {[%clk 0:02:54]}  Qb6 {[%clk 0:02:52]} 4. Qb3 {[%clk 0:02:50]}  cxd4 {[%clk 0:02:51]} 5. Qxb6 {[%clk 0:02:48]}  axb6 {[%clk 0:02:50]} 6. cxd4 {[%clk 0:02:48]}  Nc6 {[%clk 0:02:47]} 7. e3 {[%clk 0:02:45]}  Nd5 {[%clk 0:02:40]} 8. Bg3 {[%clk 0:02:44]}  Ndb4 {[%clk 0:02:35]} 9. Na3 {[%clk 0:02:29]}  Rxa3 {[%clk 0:02:33]} 10. bxa3 {[%clk 0:02:30]}  Nc2+ {[%clk 0:02:32]} 11. Kd2 {[%clk 0:02:30]}  Nxa1 {[%clk 0:02:32]} 12. Nf3 {[%clk 0:02:28]}  e6 {[%clk 0:02:28]} 13. Bb5 {[%clk 0:02:17]}  Bxa3 {[%clk 0:02:26]} 14. Rxa1 {[%clk 0:02:09]}  Bb4+ {[%clk 0:02:18]} 15. Kd3 {[%clk 0:02:07]}  Ke7 {[%clk 0:02:15]} 16. Bc7 {[%clk 0:02:06]}  Ba5 {[%clk 0:02:13]} 17. Ne5 {[%clk 0:02:02]}  d6 {[%clk 0:02:10]} 18. Nc4 {[%clk 0:01:51]}  Bd7 {[%clk 0:02:07]} 19. Bxd6+ {[%clk 0:01:43]}  Kf6 {[%clk 0:02:05]} 20. Rb1 {[%clk 0:01:41]}  Ra8 {[%clk 0:02:00]} 21. a4 {[%clk 0:01:33]}  Kg6 {[%clk 0:01:57]} 22. Bxc6 {[%clk 0:01:28]}  Bxc6 {[%clk 0:01:52]} 23. Ne5+ {[%clk 0:01:29]}  Kf6 {[%clk 0:01:49]} 24. Nxc6 {[%clk 0:01:30]}  bxc6 {[%clk 0:01:48]} 25. Kc4 {[%clk 0:01:18]}  Kg6 {[%clk 0:01:47]} 26. h4 {[%clk 0:01:10]}  h5 {[%clk 0:01:46]} 27. f3 {[%clk 0:01:09]}  f6 {[%clk 0:01:45]} 28. g4 {[%clk 0:01:08]}  Rh8 {[%clk 0:01:40]} 29. g5 {[%clk 0:01:01]}  fxg5 {[%clk 0:01:38]} 30. Rg1 {[%clk 0:01:01]}  Kf7 {[%clk 0:01:15]} 31. Rxg5 {[%clk 0:00:57]}  g6 {[%clk 0:01:14]} 32. Rg2 {[%clk 0:00:49]}  Rd8 {[%clk 0:01:08]} 33. Be5 {[%clk 0:00:48]}  Be1 {[%clk 0:00:56]} 34. Rb2 {[%clk 0:00:43]}  Ra8 {[%clk 0:00:54]} 35. Rxb6 {[%clk 0:00:38]}  Rxa4+ {[%clk 0:00:52]} 36. Kd3 {[%clk 0:00:39]}  Ra7 {[%clk 0:00:48]} 37. Rxc6 {[%clk 0:00:30]}  Bxh4 {[%clk 0:00:48]} 38. Rc8 {[%clk 0:00:24]}  Bf6 {[%clk 0:00:45]} 39. Bd6 {[%clk 0:00:22]}  Rd7 {[%clk 0:00:42]} 40. Rf8+ {[%clk 0:00:20]}  Kg7 {[%clk 0:00:41]} 41. Bc5 {[%clk 0:00:21]}  h4 {[%clk 0:00:37]} 42. Ra8 {[%clk 0:00:19]}  Rb7 {[%clk 0:00:35]} 43. Kc2 {[%clk 0:00:18]}  g5 {[%clk 0:00:35]} 44. Ra1 {[%clk 0:00:17]}  Kg6 {[%clk 0:00:32]} 45. Rh1 {[%clk 0:00:18]}  Rh7 {[%clk 0:00:31]} 46. Bd6 {[%clk 0:00:17]}  Kh5 {[%clk 0:00:25]} 47. Kd3 {[%clk 0:00:17]}  g4 {[%clk 0:00:24]} 48. fxg4+ {[%clk 0:00:18]}  Kxg4 {[%clk 0:00:25]} 49. Ke4 {[%clk 0:00:19]}  h3 {[%clk 0:00:23]} 50. Rg1+ {[%clk 0:00:19]}  Kh5 {[%clk 0:00:23]} 51. d5 {[%clk 0:00:19]}  exd5+ {[%clk 0:00:21]} 52. Kf5 {[%clk 0:00:19]}  Rg7 {[%clk 0:00:18]} 53. Rh1 {[%clk 0:00:19]}  Bh4 {[%clk 0:00:14]} 54. Rxh3 {[%clk 0:00:18]}  Rg5+ {[%clk 0:00:11]} 55. Ke6 {[%clk 0:00:15]}  Rg6+ {[%clk 0:00:02]} 56. Kxd5 {[%clk 0:00:15]}  Kg4 {[%clk 0:00:02]} 57. Rh1 {[%clk 0:00:15]} 1-0


[Site "https://www.chess.com"]

[Event "Titled Tuesday Blitz May 03 Early 2022"]
[White "Mirzoev, Azer"]
[Black "Zhao, Jun"]
[WhiteFideId "13400304"]
[BlackFideId "8602522"]
[WhiteElo "2525"]
[BlackElo "2547"]
[Result "1/2-1/2"]
[Round "08"]
[TimeControl "180+1"]
[Date "2022.05.03"]
[WhiteClock "0:00:03"]
[BlackClock "0:00:02"]

1. d4 {[%clk 0:03:00]}  Nf6 {[%clk 0:02:56]} 2. Nf3 {[%clk 0:03:00]}  d5 {[%clk 0:02:55]} 3. Bf4 {[%clk 0:03:00]}  e6 {[%clk 0:02:53]} 4. e3 {[%clk 0:03:00]}  Bd6 {[%clk 0:02:53]} 5. Bg3 {[%clk 0:02:59]}  O-O {[%clk 0:02:53]} 6. Nbd2 {[%clk 0:03:00]}  b6 {[%clk 0:02:51]} 7. c4 {[%clk 0:03:00]}  Bb7 {[%clk 0:02:50]} 8. cxd5 {[%clk 0:02:58]}  exd5 {[%clk 0:02:49]} 9. Bd3 {[%clk 0:02:51]}  c5 {[%clk 0:02:48]} 10. O-O {[%clk 0:02:48]}  Nc6 {[%clk 0:02:47]} 11. Ne5 {[%clk 0:02:44]}  cxd4 {[%clk 0:02:45]} 12. Nxc6 {[%clk 0:02:43]}  Bxc6 {[%clk 0:02:45]} 13. exd4 {[%clk 0:02:44]}  Bxg3 {[%clk 0:02:44]} 14. hxg3 {[%clk 0:02:44]}  Qd6 {[%clk 0:02:40]} 15. Re1 {[%clk 0:02:42]}  Rfe8 {[%clk 0:02:39]} 16. a3 {[%clk 0:02:38]}  Rxe1+ {[%clk 0:02:33]} 17. Qxe1 {[%clk 0:02:37]}  Re8 {[%clk 0:02:33]} 18. Qd1 {[%clk 0:02:37]}  Ne4 {[%clk 0:02:31]} 19. Nf3 {[%clk 0:02:34]}  f6 {[%clk 0:02:26]} 20. Rc1 {[%clk 0:02:33]}  Bd7 {[%clk 0:02:26]} 21. Qc2 {[%clk 0:02:30]}  Rc8 {[%clk 0:02:24]} 22. Qb1 {[%clk 0:02:28]}  Rxc1+ {[%clk 0:02:21]} 23. Qxc1 {[%clk 0:02:28]}  Qc6 {[%clk 0:02:18]} 24. Qxc6 {[%clk 0:02:25]}  Bxc6 {[%clk 0:02:17]} 25. Kf1 {[%clk 0:02:25]}  Nd6 {[%clk 0:02:17]} 26. Nd2 {[%clk 0:02:17]}  Kf7 {[%clk 0:02:14]} 27. Ke2 {[%clk 0:02:14]}  g6 {[%clk 0:02:12]} 28. Ke3 {[%clk 0:02:12]}  Ke6 {[%clk 0:02:10]} 29. g4 {[%clk 0:01:54]}  Bb5 {[%clk 0:02:07]} 30. f3 {[%clk 0:01:52]}  Bxd3 {[%clk 0:02:04]} 31. Kxd3 {[%clk 0:01:51]}  f5 {[%clk 0:02:05]} 32. gxf5+ {[%clk 0:01:38]}  Kxf5 {[%clk 0:02:05]} 33. Ke3 {[%clk 0:00:56]}  h5 {[%clk 0:01:51]} 34. b3 {[%clk 0:00:54]}  g5 {[%clk 0:01:47]} 35. a4 {[%clk 0:00:52]}  h4 {[%clk 0:01:43]} 36. Nb1 {[%clk 0:00:45]}  Ke6 {[%clk 0:01:21]} 37. Nc3 {[%clk 0:00:44]}  Nf5+ {[%clk 0:01:21]} 38. Kd3 {[%clk 0:00:44]}  a6 {[%clk 0:01:22]} 39. Na2 {[%clk 0:00:39]}  Ne7 {[%clk 0:01:19]} 40. Nb4 {[%clk 0:00:35]}  a5 {[%clk 0:01:09]} 41. Nc2 {[%clk 0:00:27]}  Kf5 {[%clk 0:01:08]} 42. Ke3 {[%clk 0:00:21]}  Ng6 {[%clk 0:01:07]} 43. Kf2 {[%clk 0:00:18]}  Nf4 {[%clk 0:01:07]} 44. Ne3+ {[%clk 0:00:17]}  Ke6 {[%clk 0:01:06]} 45. Nc2 {[%clk 0:00:17]}  Nd3+ {[%clk 0:01:05]} 46. Ke3 {[%clk 0:00:17]}  Nf4 {[%clk 0:00:56]} 47. Kf2 {[%clk 0:00:17]}  Nd3+ {[%clk 0:00:55]} 48. Ke3 {[%clk 0:00:17]}  Nc1 {[%clk 0:00:50]} 49. b4 {[%clk 0:00:16]}  Na2 {[%clk 0:00:42]} 50. bxa5 {[%clk 0:00:16]}  bxa5 {[%clk 0:00:42]} 51. Kd3 {[%clk 0:00:13]}  Kd6 {[%clk 0:00:34]} 52. Ne3 {[%clk 0:00:10]}  Nb4+ {[%clk 0:00:34]} 53. Kc3 {[%clk 0:00:09]}  Ke6 {[%clk 0:00:33]} 54. Kd2 {[%clk 0:00:08]}  Nc6 {[%clk 0:00:32]} 55. Kd3 {[%clk 0:00:07]}  Ne7 {[%clk 0:00:31]} 56. Nf1 {[%clk 0:00:05]}  Nc8 {[%clk 0:00:28]} 57. Nd2 {[%clk 0:00:05]}  Kf5 {[%clk 0:00:21]} 58. Nb3 {[%clk 0:00:02]}  Kf4 {[%clk 0:00:20]} 59. Ke2 {[%clk 0:00:02]}  Kg3 {[%clk 0:00:15]} 60. Kf1 {[%clk 0:00:02]}  Nb6 {[%clk 0:00:16]} 61. Nxa5 {[%clk 0:00:02]}  Nxa4 {[%clk 0:00:16]} 62. Nc6 {[%clk 0:00:02]}  Nc3 {[%clk 0:00:12]} 63. Ne7 {[%clk 0:00:02]}  Kf4 {[%clk 0:00:10]} 64. Kf2 {[%clk 0:00:02]}  Nd1+ {[%clk 0:00:10]} 65. Ke2 {[%clk 0:00:02]}  Nc3+ {[%clk 0:00:08]} 66. Kf2 {[%clk 0:00:02]}  Nd1+ {[%clk 0:00:02]} 67. Ke2 {[%clk 0:00:02]}  Nc3+ {[%clk 0:00:02]} 68. Kf2 {[%clk 0:00:03]} 1/2-1/2


[Site "https://www.chess.com"]

[Event "Titled Tuesday Blitz May 03 Early 2022"]
[White "Moiseenko, Alexander"]
[Black "Jones, Gawain C B"]
[WhiteFideId "14102560"]
[BlackFideId "409561"]
[WhiteElo "2577"]
[BlackElo "2657"]
[Result "1-0"]
[Round "08"]
[TimeControl "180+1"]
[Date "2022.05.03"]
[WhiteClock "0:00:18"]
[BlackClock "0:00:04"]

1. d4 {[%clk 0:03:00]}  Nf6 {[%clk 0:02:59]} 2. Bg5 {[%clk 0:03:01]}  g6 {[%clk 0:02:59]} 3. Bxf6 {[%clk 0:03:01]}  exf6 {[%clk 0:03:00]} 4. c4 {[%clk 0:03:01]}  d5 {[%clk 0:03:00]} 5. cxd5 {[%clk 0:03:01]}  Qxd5 {[%clk 0:03:01]} 6. Nc3 {[%clk 0:03:02]}  Qd8 {[%clk 0:03:01]} 7. e3 {[%clk 0:03:01]}  Bd6 {[%clk 0:03:01]} 8. g3 {[%clk 0:02:58]}  c6 {[%clk 0:02:59]} 9. Bg2 {[%clk 0:02:59]}  h5 {[%clk 0:02:59]} 10. Nf3 {[%clk 0:02:58]}  Be6 {[%clk 0:02:45]} 11. O-O {[%clk 0:02:57]}  Nd7 {[%clk 0:02:41]} 12. d5 {[%clk 0:02:54]}  cxd5 {[%clk 0:02:41]} 13. Nxd5 {[%clk 0:02:55]}  O-O {[%clk 0:02:33]} 14. Nf4 {[%clk 0:02:50]}  Bxf4 {[%clk 0:02:29]} 15. exf4 {[%clk 0:02:50]}  Nb6 {[%clk 0:02:26]} 16. b3 {[%clk 0:02:34]}  Qxd1 {[%clk 0:02:16]} 17. Rfxd1 {[%clk 0:02:33]}  Rfd8 {[%clk 0:02:16]} 18. Ne1 {[%clk 0:02:13]}  Bd5 {[%clk 0:02:15]} 19. Nc2 {[%clk 0:02:06]}  Kf8 {[%clk 0:02:10]} 20. Ne3 {[%clk 0:02:05]}  Bxg2 {[%clk 0:02:09]} 21. Kxg2 {[%clk 0:02:06]}  f5 {[%clk 0:02:03]} 22. Kf3 {[%clk 0:02:06]}  Rac8 {[%clk 0:01:59]} 23. Ke2 {[%clk 0:02:04]}  Ke7 {[%clk 0:01:57]} 24. Rxd8 {[%clk 0:02:04]}  Kxd8 {[%clk 0:01:55]} 25. Rd1+ {[%clk 0:02:03]}  Ke7 {[%clk 0:01:55]} 26. Rd2 {[%clk 0:01:59]}  h4 {[%clk 0:01:54]} 27. Rc2 {[%clk 0:01:44]}  Rxc2+ {[%clk 0:01:42]} 28. Nxc2 {[%clk 0:01:45]}  Nd5 {[%clk 0:01:41]} 29. Kd3 {[%clk 0:01:32]}  Kd6 {[%clk 0:01:40]} 30. a3 {[%clk 0:01:31]}  Nf6 {[%clk 0:01:38]} 31. Ne3 {[%clk 0:01:23]}  Ne4 {[%clk 0:01:29]} 32. Nd1 {[%clk 0:01:09]}  Nc5+ {[%clk 0:01:18]} 33. Kc4 {[%clk 0:01:09]}  a6 {[%clk 0:01:11]} 34. f3 {[%clk 0:00:58]}  b5+ {[%clk 0:01:09]} 35. Kc3 {[%clk 0:00:58]}  Ne6 {[%clk 0:01:04]} 36. Ne3 {[%clk 0:00:53]}  Kc5 {[%clk 0:00:55]} 37. b4+ {[%clk 0:00:51]}  Kd6 {[%clk 0:00:55]} 38. Kd3 {[%clk 0:00:46]}  Ng7 {[%clk 0:00:49]} 39. Ng2 {[%clk 0:00:37]}  hxg3 {[%clk 0:00:33]} 40. hxg3 {[%clk 0:00:38]}  Nh5 {[%clk 0:00:21]} 41. g4 {[%clk 0:00:38]}  fxg4 {[%clk 0:00:22]} 42. fxg4 {[%clk 0:00:38]}  Nf6 {[%clk 0:00:22]} 43. g5 {[%clk 0:00:31]}  Nd5 {[%clk 0:00:21]} 44. Kd4 {[%clk 0:00:27]}  Nc7 {[%clk 0:00:11]} 45. Ne3 {[%clk 0:00:25]}  Ne6+ {[%clk 0:00:11]} 46. Ke4 {[%clk 0:00:25]}  Nc7 {[%clk 0:00:07]} 47. f5 {[%clk 0:00:23]}  gxf5+ {[%clk 0:00:06]} 48. Kxf5 {[%clk 0:00:22]}  Ke7 {[%clk 0:00:06]} 49. Ke5 {[%clk 0:00:22]}  Ne6 {[%clk 0:00:07]} 50. Nd5+ {[%clk 0:00:21]}  Kd7 {[%clk 0:00:06]} 51. Kf6 {[%clk 0:00:22]}  Kd6 {[%clk 0:00:06]} 52. Ne3 {[%clk 0:00:21]}  Nd8 {[%clk 0:00:04]} 53. Nf5+ {[%clk 0:00:21]}  Kd5 {[%clk 0:00:03]} 54. Nh6 {[%clk 0:00:21]}  Ne6 {[%clk 0:00:03]} 55. Nxf7 {[%clk 0:00:21]}  Nxg5 {[%clk 0:00:03]} 56. Nxg5 {[%clk 0:00:18]}  Kc4 {[%clk 0:00:04]} 57. Ne4 {[%clk 0:00:16]}  Kb3 {[%clk 0:00:02]} 58. Nc5+ {[%clk 0:00:17]}  Kxa3 {[%clk 0:00:02]} 59. Nxa6 {[%clk 0:00:17]}  Kb3 {[%clk 0:00:03]} 60. Ke5 {[%clk 0:00:18]}  Kc4 {[%clk 0:00:04]} 61. Kd6 {[%clk 0:00:18]} 1-0


[Site "https://www.chess.com"]

[Event "Titled Tuesday Blitz May 03 Early 2022"]
[White "Nagy, Gabor"]
[Black "Xu, Yi"]
[WhiteFideId "737119"]
[BlackFideId "8605564"]
[WhiteElo "2534"]
[BlackElo "2471"]
[Result "0-1"]
[Round "08"]
[TimeControl "180+1"]
[Date "2022.05.03"]
[WhiteClock "0:01:44"]
[BlackClock "0:02:00"]

1. c4 {[%clk 0:03:00]}  Nf6 {[%clk 0:02:58]} 2. Nc3 {[%clk 0:03:00]}  e6 {[%clk 0:02:57]} 3. d4 {[%clk 0:02:59]}  Bb4 {[%clk 0:02:57]} 4. Bd2 {[%clk 0:02:59]}  O-O {[%clk 0:02:56]} 5. e3 {[%clk 0:02:59]}  d5 {[%clk 0:02:55]} 6. Nf3 {[%clk 0:02:58]}  b6 {[%clk 0:02:55]} 7. cxd5 {[%clk 0:02:58]}  exd5 {[%clk 0:02:54]} 8. Rc1 {[%clk 0:02:58]}  Bb7 {[%clk 0:02:54]} 9. a3 {[%clk 0:02:53]}  Be7 {[%clk 0:02:50]} 10. Bd3 {[%clk 0:02:53]}  c5 {[%clk 0:02:48]} 11. O-O {[%clk 0:02:50]}  Nc6 {[%clk 0:02:48]} 12. Ne5 {[%clk 0:02:50]}  cxd4 {[%clk 0:02:36]} 13. Nxc6 {[%clk 0:02:46]}  Bxc6 {[%clk 0:02:36]} 14. exd4 {[%clk 0:02:46]}  Bb7 {[%clk 0:02:36]} 15. Re1 {[%clk 0:02:41]}  a6 {[%clk 0:02:29]} 16. Qf3 {[%clk 0:02:39]}  h6 {[%clk 0:02:25]} 17. Bf4 {[%clk 0:02:33]}  Bd6 {[%clk 0:02:11]} 18. Be5 {[%clk 0:02:30]}  Re8 {[%clk 0:02:10]} 19. Qg3 {[%clk 0:02:22]}  Bxe5 {[%clk 0:02:05]} 20. dxe5 {[%clk 0:02:18]}  Ne4 {[%clk 0:02:04]} 21. Nxe4 {[%clk 0:02:14]}  dxe4 {[%clk 0:02:04]} 22. Bxe4 {[%clk 0:02:15]}  Bxe4 {[%clk 0:02:05]} 23. Rxe4 {[%clk 0:02:16]}  Rc8 {[%clk 0:02:01]} 24. Rxc8 {[%clk 0:01:50]}  Qd1+ {[%clk 0:01:59]} 25. Re1 {[%clk 0:01:44]}  Qxe1# {[%clk 0:02:00]} 0-1


[Site "https://www.chess.com"]

[Event "Titled Tuesday Blitz May 03 Early 2022"]
[White "Navalgund, Niranjan"]
[Black "Williams, Simon K"]
[WhiteFideId "5030854"]
[BlackFideId "404454"]
[WhiteElo "2290"]
[BlackElo "2468"]
[Result "1-0"]
[Round "08"]
[TimeControl "180+1"]
[Date "2022.05.03"]
[WhiteClock "0:00:23"]
[BlackClock "0:00:05"]

1. e4 {[%clk 0:02:54]}  c5 {[%clk 0:02:57]} 2. Nf3 {[%clk 0:02:51]}  d6 {[%clk 0:02:55]} 3. Bb5+ {[%clk 0:02:50]}  Nc6 {[%clk 0:02:54]} 4. O-O {[%clk 0:02:49]}  Bd7 {[%clk 0:02:52]} 5. Re1 {[%clk 0:02:49]}  a6 {[%clk 0:02:52]} 6. Bf1 {[%clk 0:02:47]}  e5 {[%clk 0:02:51]} 7. c3 {[%clk 0:02:47]}  g5 {[%clk 0:02:49]} 8. d4 {[%clk 0:02:46]}  g4 {[%clk 0:02:47]} 9. Nfd2 {[%clk 0:02:29]}  cxd4 {[%clk 0:02:45]} 10. cxd4 {[%clk 0:02:29]}  exd4 {[%clk 0:02:27]} 11. Nc4 {[%clk 0:02:26]}  b5 {[%clk 0:02:22]} 12. Ncd2 {[%clk 0:02:21]}  Bg7 {[%clk 0:02:15]} 13. Nb3 {[%clk 0:02:21]}  Be5 {[%clk 0:02:07]} 14. a4 {[%clk 0:02:20]}  Rb8 {[%clk 0:02:00]} 15. axb5 {[%clk 0:02:20]}  axb5 {[%clk 0:02:00]} 16. Na3 {[%clk 0:02:19]}  b4 {[%clk 0:01:46]} 17. Nc4 {[%clk 0:02:16]}  h5 {[%clk 0:01:38]} 18. Nxe5 {[%clk 0:02:08]}  dxe5 {[%clk 0:01:37]} 19. Nc5 {[%clk 0:02:05]}  h4 {[%clk 0:01:33]} 20. Bc4 {[%clk 0:01:26]}  Qe7 {[%clk 0:01:25]} 21. Nxd7 {[%clk 0:01:05]}  Qxd7 {[%clk 0:01:25]} 22. Ra6 {[%clk 0:01:04]}  Nge7 {[%clk 0:01:19]} 23. Qa4 {[%clk 0:00:59]}  g3 {[%clk 0:01:06]} 24. Bg5 {[%clk 0:00:51]}  gxf2+ {[%clk 0:00:58]} 25. Kxf2 {[%clk 0:00:51]}  f6 {[%clk 0:00:46]} 26. Bd2 {[%clk 0:00:44]}  Kf8 {[%clk 0:00:26]} 27. Kg1 {[%clk 0:00:38]}  h3 {[%clk 0:00:24]} 28. g3 {[%clk 0:00:36]}  Qg4 {[%clk 0:00:24]} 29. Rxc6 {[%clk 0:00:30]}  Qf3 {[%clk 0:00:24]} 30. Bf1 {[%clk 0:00:30]}  Nxc6 {[%clk 0:00:21]} 31. Qxc6 {[%clk 0:00:29]}  Kg7 {[%clk 0:00:21]} 32. Bxh3 {[%clk 0:00:22]}  Rxh3 {[%clk 0:00:17]} 33. Qd7+ {[%clk 0:00:22]}  Kg6 {[%clk 0:00:16]} 34. Qxh3 {[%clk 0:00:23]}  Ra8 {[%clk 0:00:10]} 35. Qh6+ {[%clk 0:00:22]}  Kf7 {[%clk 0:00:10]} 36. Rf1 {[%clk 0:00:23]}  Qxe4 {[%clk 0:00:05]} 37. Qxf6+ {[%clk 0:00:23]} 1-0


[Site "https://www.chess.com"]

[Event "Titled Tuesday Blitz May 03 Early 2022"]
[White "Osmak, Yuliia"]
[Black "D`Arruda, Ricardo D."]
[WhiteFideId "14101602"]
[BlackFideId "100692"]
[WhiteElo "2302"]
[BlackElo "2423"]
[Result "0-1"]
[Round "08"]
[TimeControl "180+1"]
[Date "2022.05.03"]
[WhiteClock "0:00:13"]
[BlackClock "0:00:41"]

1. e4 {[%clk 0:02:58]}  c5 {[%clk 0:02:58]} 2. c3 {[%clk 0:02:56]}  e6 {[%clk 0:02:57]} 3. d4 {[%clk 0:02:56]}  d5 {[%clk 0:02:57]} 4. e5 {[%clk 0:02:56]}  Qb6 {[%clk 0:02:55]} 5. Nf3 {[%clk 0:02:56]}  Bd7 {[%clk 0:02:55]} 6. Bd3 {[%clk 0:02:54]}  Bb5 {[%clk 0:02:55]} 7. dxc5 {[%clk 0:02:52]}  Bxc5 {[%clk 0:02:53]} 8. b4 {[%clk 0:02:52]}  Bxf2+ {[%clk 0:02:51]} 9. Ke2 {[%clk 0:02:51]}  Nc6 {[%clk 0:02:32]} 10. Bxb5 {[%clk 0:02:47]}  Qxb5+ {[%clk 0:02:29]} 11. Kxf2 {[%clk 0:02:47]}  Nge7 {[%clk 0:02:23]} 12. a4 {[%clk 0:02:35]}  Qb6+ {[%clk 0:02:20]} 13. Be3 {[%clk 0:02:35]}  Qc7 {[%clk 0:02:20]} 14. Bd4 {[%clk 0:02:31]}  Nf5 {[%clk 0:02:18]} 15. Re1 {[%clk 0:02:26]}  O-O {[%clk 0:02:18]} 16. Qd2 {[%clk 0:02:19]}  f6 {[%clk 0:02:16]} 17. exf6 {[%clk 0:02:16]}  Nfxd4 {[%clk 0:02:16]} 18. cxd4 {[%clk 0:02:14]}  Rxf6 {[%clk 0:02:16]} 19. Kg1 {[%clk 0:02:13]}  Raf8 {[%clk 0:02:15]} 20. Ra3 {[%clk 0:02:11]}  Qd6 {[%clk 0:02:13]} 21. b5 {[%clk 0:02:03]}  Ne7 {[%clk 0:02:11]} 22. Rd3 {[%clk 0:01:58]}  Ng6 {[%clk 0:02:10]} 23. Ne5 {[%clk 0:01:40]}  Nf4 {[%clk 0:02:09]} 24. Rg3 {[%clk 0:01:33]}  Kh8 {[%clk 0:02:08]} 25. Nc3 {[%clk 0:01:31]}  Qb4 {[%clk 0:02:06]} 26. h3 {[%clk 0:01:21]}  Rc8 {[%clk 0:01:44]} 27. Ne4 {[%clk 0:01:15]}  Qxd2 {[%clk 0:01:22]} 28. Nxd2 {[%clk 0:01:16]}  Rc2 {[%clk 0:01:21]} 29. Nef3 {[%clk 0:01:10]}  Ra2 {[%clk 0:01:17]} 30. Kh2 {[%clk 0:00:56]}  Rxa4 {[%clk 0:01:16]} 31. Rc1 {[%clk 0:00:55]}  h6 {[%clk 0:01:11]} 32. Rc7 {[%clk 0:00:54]}  Ra2 {[%clk 0:01:08]} 33. Rgxg7 {[%clk 0:00:52]}  Nh5 {[%clk 0:00:59]} 34. Rh7+ {[%clk 0:00:51]}  Kg8 {[%clk 0:00:59]} 35. Rhd7 {[%clk 0:00:50]}  Nf4 {[%clk 0:00:57]} 36. Rxb7 {[%clk 0:00:46]}  Rb2 {[%clk 0:00:55]} 37. Rd8+ {[%clk 0:00:41]}  Rf8 {[%clk 0:00:54]} 38. Rxf8+ {[%clk 0:00:41]}  Kxf8 {[%clk 0:00:55]} 39. Rxa7 {[%clk 0:00:37]}  Rxb5 {[%clk 0:00:55]} 40. Kg3 {[%clk 0:00:33]}  Ne2+ {[%clk 0:00:55]} 41. Kf2 {[%clk 0:00:33]}  Nf4 {[%clk 0:00:56]} 42. h4 {[%clk 0:00:24]}  Rb2 {[%clk 0:00:54]} 43. g3 {[%clk 0:00:23]}  Nd3+ {[%clk 0:00:53]} 44. Ke3 {[%clk 0:00:23]}  Nb4 {[%clk 0:00:52]} 45. Ne5 {[%clk 0:00:20]}  Rc2 {[%clk 0:00:50]} 46. Ndf3 {[%clk 0:00:19]}  Rc3+ {[%clk 0:00:43]} 47. Kf4 {[%clk 0:00:18]}  Nc2 {[%clk 0:00:43]} 48. Ng6+ {[%clk 0:00:16]}  Kg8 {[%clk 0:00:42]} 49. Re7 {[%clk 0:00:15]}  Re3 {[%clk 0:00:41]} 50. Nge5 {[%clk 0:00:13]}  Re4# {[%clk 0:00:41]} 0-1


[Site "https://www.chess.com"]